[Event "ROU-chT 1st League 2019"]
[Site "Mamaia"]
[Date "2019.09.29"]
[Round "9.16"]
[White "Filip, Lucian-Ioan"]
[Black "Coca, Cristi-Iulian"]
[Result "1-0"]
[ECO "E92"]
[WhiteElo "2419"]
[BlackElo "2106"]
[Annotator "NA"]
[PlyCount "99"]
[EventDate "2019.09.21"]
[EventType "team-tourn"]
[EventCountry "ROU"]
[SourceTitle "playchess.com"]
[Source "ChessBase"]
[SourceQuality "1"]
[TimeControl "40/5400+30:1800+30"]

1. d4 {[%emt 0:00:00]} Nf6 {[%emt 0:00:00]} 2. c4 {[%emt 0:00:00]} g6 {[%emt 0:00:00]} 3. Nc3 {[%emt 0:00:00]} Bg7 {[%emt 0:00:00]} 4. e4 {[%emt 0:00:00]} d6 {[%emt 0:00:00]} 5. Be2 {[%emt 0:00:00]} O-O {[%emt 0:00:00]} 6. Nf3 {[%emt 0:00:00]} e5 {[%emt 0:00:07]} 7. Be3 {[%emt 0:00:00]} exd4 {[%emt 0:00:07]} 8. Nxd4 {[%emt 0:00:00]} Nc6 {[%emt 0:00:18]} 9. O-O {[%emt 0:11:41]} Re8 {[%emt 0:00:41]} 10. f3 {[%emt 0:00:03]} Nh5 {[%emt 0:01:25]} 11. Qd2 {[%emt 0:02:47]} Nxd4 {[%emt 0:06:44]} 12. Bxd4 {[%emt 0:00:10]} Bxd4+ {[%emt 0:01:29]} 13. Qxd4 {[%emt 0:00:05]} Nf4 {[%emt 0:00:24]} 14. Rfd1 {[%emt 0:02:52]} Qg5 {[%emt 0:01:48]} 15. Bf1 {[%emt 0:00:08]} Bh3 {[%emt 0:03:43]} 16. Qd2 {[%emt 0:06:06]} Be6 {[%emt 0:13:44]} 17. g3 {[%emt 0:20:13]} Qc5+ {[%emt 0:03:58]} 18. Qd4 {[%emt 0:05:20]} Nh5 {[%emt 0:01:16]} 19. Nd5 {[%emt 0:09:28]} Rac8 {[%emt 0:01:37]} 20. Qxc5 {[%emt 0:06:45]} dxc5 {[%emt 0:00:15]} 21. g4 {[%emt 0:00:12]} Bxd5 {[%emt 0:00:14]} 22. cxd5 {[%emt 0:00:03]} Nf4 {[%emt 0:01:00]} 23. Rac1 {[%emt 0:00:03]} f5 {[%emt 0:13:20]} 24. gxf5 {[%emt 0:22:55]} gxf5 {[%emt 0:00:49]} 25. Rxc5 {[%emt 0:10:08]} fxe4 {[%emt 0:01:12]} 26. fxe4 {[%emt 0:00:03]} Rxe4 {[%emt 0:02:32]} 27. Rdc1 {[%emt 0:02:35]} Rf8 {[%emt 0:20:56]} 28. Rxc7 {[%emt 0:00:13]} Ne2+ {[%emt 0:12:52]} 29. Bxe2 {[%emt 0:00:02]} Rxe2 {[%emt 0:00:05]} 30. R7c2 {[%emt 0:01:59]} Rxc2 {[%emt 0:04:04]} 31. Rxc2 {[%emt 0:00:01]} Rd8 {[%emt 0:00:01]} 32. Rc7 {[%emt 0:01:04]} Rxd5 {[%emt 0:00:13]} 33. Rxb7 {[%emt 0:00:03]} Rd2 {[%emt 0:00:26]} 34. a4 {[%emt 0:00:29]} a5 {[%emt 0:01:14]} 35. b3 {[%emt 0:00:07]} Rb2 {[%emt 0:00:16]} 36. h4 {[%emt 0:00:08]} h6 {[%emt 0:02:00]} 37. h5 {[%emt 0:00:15]} Kf8 {[%emt 0:00:32]} 38. Kf1 {[%emt 0:00:09]} Ke8 {[%emt 0:00:19]} 39. Rb5 {[%emt 0:01:33]} Ke7 {[%emt 0:00:08]} 40. Ke1 {[%emt 0:00:00]} Kd6 {[%emt 0:00:00]} 41. Kd1 {[%emt 0:00:04]} Kc6 {[%emt 0:01:35]} 42. Kc1 {[%emt 0:00:05]} Rh2 {[%emt 0:00:12]} 43. Rxa5 {[%emt 0:00:04]} Kb6 {[%emt 0:00:05]} 44. Rf5 {[%emt 0:00:57]} Kc7 {[%emt 0:04:16]} 45. a5 {[%emt 0:01:56]} Kb7 {[%emt 0:00:25]} 46. b4 {[%emt 0:00:45]} Ka7 {[%emt 0:00:22]} 47. b5 {[%emt 0:01:44]} Kb7 {[%emt 0:00:45]} 48. Rf7+ {[%emt 0:02:57]} Kb8 {[%emt 0:01:19]} 49. a6 {[%emt 0:00:50]} Rxh5 {[%emt 0:00:21]} 50. b6 {[%emt 0:00:11]} 1-0

[Event "ROU-chT 1st League 2019"]
[Site "Mamaia"]
[Date "2019.09.29"]
[Round "9.17"]
[White "Dobrin, Ionut-Alexandru"]
[Black "Ognean, Mihnea-Ionut"]
[Result "0-1"]
[ECO "E20"]
[WhiteElo "2089"]
[BlackElo "2285"]
[Annotator "NA"]
[PlyCount "82"]
[EventDate "2019.09.21"]
[EventType "team-tourn"]
[EventCountry "ROU"]
[SourceTitle "playchess.com"]
[Source "ChessBase"]
[SourceQuality "1"]
[TimeControl "40/5400+30:1800+30"]

1. d4 {[%emt 0:00:00]} Nf6 {[%emt 0:00:00]} 2. c4 {[%emt 0:00:00]} e6 {[%emt 0:00:00]} 3. Nc3 {[%emt 0:00:09]} Bb4 {[%emt 0:00:00]} 4. f3 {[%emt 0:00:32]} c5 {[%emt 0:00:00]} 5. a3 {[%emt 0:00:08]} Bxc3+ {[%emt 0:00:03]} 6. bxc3 {[%emt 0:00:02]} Nc6 {[%emt 0:00:27]} 7. e4 {[%emt 0:01:06]} d6 {[%emt 0:00:10]} 8. Be3 {[%emt 0:01:37]} b6 {[%emt 0:00:06]} 9. Bd3 {[%emt 0:00:11]} Na5 {[%emt 0:00:35]} 10. Ne2 {[%emt 0:02:29]} Ba6 {[%emt 0:00:38]} 11. Ng3 {[%emt 0:07:50]} O-O {[%emt 0:00:56]} 12. O-O {[%emt 0:03:17]} Bxc4 {[%emt 0:02:40]} 13. f4 {[%emt 0:03:32]} cxd4 {[%emt 0:17:46]} 14. cxd4 {[%emt 0:02:30]} d5 {[%emt 0:17:32]} 15. e5 {[%emt 0:07:04]} Ne4 {[%emt 0:06:26]} 16. f5 {[%emt 0:09:55]} Nxg3 {[%emt 0:04:56]} 17. hxg3 {[%emt 0:00:11]} f6 {[%emt 0:00:49]} 18. g4 {[%emt 0:19:19]} fxe5 {[%emt 0:09:20]} 19. dxe5 {[%emt 0:00:23]} Qe7 {[%emt 0:00:38]} 20. Qc2 {[%emt 0:16:12]} exf5 {[%emt 0:07:19]} 21. gxf5 {[%emt 0:01:39]} Qxe5 {[%emt 0:00:14]} 22. Rae1 {[%emt 0:00:40]} Bxd3 {[%emt 0:01:08]} 23. Qxd3 {[%emt 0:00:11]} Qe4 {[%emt 0:00:19]} 24. Qxe4 {[%emt 0:05:16]} dxe4 {[%emt 0:00:04]} 25. Bd2 {[%emt 0:01:19]} Rae8 {[%emt 0:09:16]} 26. Bxa5 {[%emt 0:04:28]} bxa5 {[%emt 0:00:04]} 27. Rf4 {[%emt 0:00:08]} Re5 {[%emt 0:01:57]} 28. Rexe4 {[%emt 0:00:32]} Rxe4 {[%emt 0:00:05]} 29. Rxe4 {[%emt 0:00:05]} Rxf5 {[%emt 0:00:04]} 30. Re7 {[%emt 0:01:20]} Rf4 {[%emt 0:00:05]} 31. Kh2 {[%emt 0:02:24]} Ra4 {[%emt 0:00:20]} 32. Re3 {[%emt 0:00:08]} Kf7 {[%emt 0:00:17]} 33. Kh3 {[%emt 0:00:48]} Kf6 {[%emt 0:03:34]} 34. g4 {[%emt 0:01:12]} g6 {[%emt 0:01:16]} 35. Kg3 {[%emt 0:01:47]} Rc4 {[%emt 0:01:04]} 36. Rf3+ {[%emt 0:02:01]} Kg5 {[%emt 0:00:17]} 37. Rf7 {[%emt 0:00:28]} Rxg4+ {[%emt 0:00:14]} 38. Kf3 {[%emt 0:00:18]} h5 {[%emt 0:00:08]} 39. Rxa7 {[%emt 0:02:03]} Ra4 {[%emt 0:00:07]} 40. Kg2 {[%emt 0:00:00]} Rxa3 {[%emt 0:00:00]} 41. Ra6 {[%emt 0:01:11]} Kf5 {[%emt 0:00:15]} 0-1

[Event "ROU-chT 1st League 2019"]
[Site "Mamaia"]
[Date "2019.09.29"]
[Round "9.18"]
[White "Secrieru, Andrei-Cristian"]
[Black "Craciun, Alexandru-Emilian"]
[Result "0-1"]
[ECO "A61"]
[WhiteElo "1930"]
[BlackElo "2077"]
[Annotator "NA"]
[PlyCount "147"]
[EventDate "2019.09.21"]
[EventType "team-tourn"]
[EventCountry "ROU"]
[SourceTitle "playchess.com"]
[Source "ChessBase"]
[SourceQuality "1"]
[TimeControl "40/5400+30:1800+30"]

1. d4 {[%emt 0:00:00]} Nf6 {[%emt 0:00:00]} 2. c4 e6 {[%emt 0:00:00]} 3. Nc3 {[%emt 0:00:00]} c5 {[%emt 0:00:10]} 4. d5 {[%emt 0:00:03]} exd5 {[%emt 0:00:10]} 5. cxd5 {[%emt 0:00:06]} d6 {[%emt 0:00:10]} 6. Nf3 {[%emt 0:00:05]} g6 {[%emt 0:01:04]} 7. Bf4 {[%emt 0:00:05]} a6 {[%emt 0:02:35]} 8. a4 {[%emt 0:00:08]} Bg7 {[%emt 0:00:52]} 9. h3 {[%emt 0:00:07]} O-O {[%emt 0:05:41]} 10. e3 {[%emt 0:00:09]} Qc7 {[%emt 0:01:46]} 11. Nd2 {[%emt 0:04:30]} Ne8 {[%emt 0:04:55]} 12. Nc4 {[%emt 0:05:42]} f5 {[%emt 0:04:40]} 13. a5 {[%emt 0:05:40]} Nd7 {[%emt 0:01:48]} 14. Na4 {[%emt 0:02:19]} Ndf6 {[%emt 0:03:45]} 15. Ncb6 {[%emt 0:08:17]} Rb8 {[%emt 0:11:18]} 16. Rc1 {[%emt 0:04:45]} Nd7 {[%emt 0:01:07]} 17. b4 {[%emt 0:03:31]} Nxb6 {[%emt 0:00:39]} 18. axb6 {[%emt 0:01:22]} Qe7 {[%emt 0:00:52]} 19. bxc5 {[%emt 0:00:56]} g5 {[%emt 0:00:33]} 20. Bh2 {[%emt 0:13:44]} f4 {[%emt 0:00:59]} 21. Qe2 {[%emt 0:15:19]} Nf6 {[%emt 0:18:54]} 22. c6 {[%emt 0:15:47]} Bf5 {[%emt 0:12:12]} 23. f3 {[%emt 0:15:27]} Rfe8 {[%emt 0:13:22]} 24. c7 {[%emt 0:01:24]} Rbc8 {[%emt 0:00:20]} 25. Nc3 {[%emt 0:02:17]} Qxe3 {[%emt 0:03:06]} 26. Qxe3 {[%emt 0:00:32]} Rxe3+ {[%emt 0:00:02]} 27. Kd2 {[%emt 0:00:42]} Nd7 {[%emt 0:00:38]} 28. Bg1 {[%emt 0:00:16]} Bd4 {[%emt 0:01:52]} 29. Nd1 {[%emt 0:00:08]} Nxb6 {[%emt 0:08:15]} 30. Nxe3 {[%emt 0:00:19]} fxe3+ {[%emt 0:00:26]} 31. Bxe3 {[%emt 0:00:06]} Bxe3+ {[%emt 0:00:05]} 32. Kxe3 {[%emt 0:00:02]} Rxc7 {[%emt 0:03:01]} 33. Rxc7 {[%emt 0:00:44]} Nxd5+ {[%emt 0:00:02]} 34. Kd4 {[%emt 0:00:21]} Nxc7 {[%emt 0:00:02]} 35. Bc4+ {[%emt 0:00:17]} Kg7 {[%emt 0:00:36]} 36. g4 {[%emt 0:00:33]} Bd7 {[%emt 0:01:04]} 37. h4 {[%emt 0:00:12]} b5 {[%emt 0:00:43]} 38. Bd3 {[%emt 0:00:15]} Bc6 {[%emt 0:00:37]} 39. Be4 {[%emt 0:00:54]} Ne6+ {[%emt 0:00:25]} 40. Ke3 {[%emt 0:00:00]} d5 {[%emt 0:00:00]} 41. Bf5 {[%emt 0:00:37]} d4+ {[%emt 0:06:55]} 42. Kf2 {[%emt 0:00:19]} Bd5 {[%emt 0:01:20]} 43. Bxe6 {[%emt 0:00:34]} Bxe6 {[%emt 0:00:02]} 44. hxg5 {[%emt 0:00:01]} a5 {[%emt 0:06:18]} 45. Rd1 {[%emt 0:01:23]} a4 {[%emt 0:01:52]} 46. Rxd4 {[%emt 0:00:46]} a3 {[%emt 0:00:53]} 47. Ke3 {[%emt 0:00:11]} Bb3 {[%emt 0:03:04]} 48. Rd7+ {[%emt 0:00:19]} Kg6 49. Rc7 {[%emt 0:01:28]} a2 {[%emt 0:05:44]} 50. Rc1 {[%emt 0:00:03]} Kxg5 {[%emt 0:03:22]} 51. Kd2 {[%emt 0:00:14]} Bd5 {[%emt 0:01:14]} 52. Ke3 {[%emt 0:02:23]} Bxf3 {[%emt 0:05:40]} 53. Kxf3 {[%emt 0:01:01]} b4 {[%emt 0:00:08]} 54. Rc5+ {[%emt 0:01:49]} Kg6 {[%emt 0:01:00]} 55. Ra5 {[%emt 0:00:07]} b3 {[%emt 0:00:04]} 56. Ra6+ {[%emt 0:00:29]} Kf7 {[%emt 0:00:53]} 57. Kg3 {[%emt 0:00:10]} b2 {[%emt 0:00:12]} 58. Rxa2 {[%emt 0:00:04]} b1=Q {[%emt 0:00:04]} 59. Rf2+ {[%emt 0:00:04]} Kg6 {[%emt 0:00:18]} 60. Rf5 {[%emt 0:00:02]} Qe4 {[%emt 0:01:24]} 61. Kh3 {[%emt 0:00:06]} Qe3+ {[%emt 0:00:38]} 62. Kh4 {[%emt 0:00:11]} Qd3 {[%emt 0:00:37]} 63. Rg5+ {[%emt 0:00:25]} Kf6 {[%emt 0:00:24]} 64. Rf5+ {[%emt 0:00:06]} Ke6 {[%emt 0:00:09]} 65. Rh5 {[%emt 0:00:16]} Qg6 {[%emt 0:00:51]} 66. Kg3 {[%emt 0:00:12]} Kf7 {[%emt 0:00:30]} 67. Rf5+ {[%emt 0:00:06]} Kg7 {[%emt 0:00:04]} 68. Kh4 {[%emt 0:00:08]} Qh6+ {[%emt 0:00:33]} 69. Kg3 {[%emt 0:00:10]} Qe3+ {[%emt 0:00:08]} 70. Kg2 {[%emt 0:00:57]} Kg6 {[%emt 0:00:13]} 71. Rh5 {[%emt 0:00:44]} Qf4 {[%emt 0:00:45]} 72. Kh3 {[%emt 0:00:07]} Qf3+ {[%emt 0:00:24]} 73. Kh4 {[%emt 0:00:12]} h6 {[%emt 0:00:24]} 74. Rf5 0-1

[Event "ROU-chT 1st League 2019"]
[Site "Mamaia"]
[Date "2019.09.29"]
[Round "9.19"]
[White "Zubov, Alexander"]
[Black "Musat, Adrian"]
[Result "0-1"]
[ECO "D35"]
[WhiteElo "2612"]
[BlackElo "2378"]
[Annotator "ChessBase"]
[PlyCount "72"]
[EventDate "2019.09.21"]
[EventType "team-tourn"]
[EventCountry "ROU"]
[SourceTitle "playchess.com"]
[Source "ChessBase"]
[SourceQuality "1"]
[TimeControl "40/5400+30:1800+30"]

1. d4 {[%emt 0:00:00]} Nf6 {[%emt 0:00:31]} 2. c4 {[%emt 0:00:00]} e6 {[%emt 0:00:06]} 3. Nc3 {[%emt 0:01:00]} d5 {[%emt 0:00:40]} 4. cxd5 {[%emt 0:00:14]} exd5 {[%emt 0:00:06]} 5. Bg5 {[%emt 0:00:05]} Be7 {[%emt 0:01:11]} 6. e3 {[%emt 0:00:21]} Nbd7 {[%emt 0:01:44]} 7. Bd3 {[%emt 0:00:13]} O-O {[%emt 0:03:52]} 8. Nge2 {[%emt 0:02:44]} h6 {[%emt 0:14:40]} 9. Bh4 {[%emt 0:07:23]} b6 {[%emt 0:09:20]} 10. f3 {[%emt 0:11:03]} c5 {[%emt 0:05:53]} 11. Bf2 {[%emt 0:04:20]} Re8 {[%emt 0:09:14]} 12. O-O {[%emt 0:02:03]} Bb7 {[%emt 0:09:29]} 13. a3 {[%emt 0:05:20]} Bf8 {[%emt 0:06:43]} 14. Qd2 {[%emt 0:07:04]} c4 {[%emt 0:08:45]} 15. Bc2 {[%emt 0:06:29]} Bc6 {[%emt 0:00:39]} 16. b3 {[%emt 0:12:55]} cxb3 {[%emt 0:04:31]} 17. Bxb3 {[%emt 0:00:22]} b5 {[%emt 0:00:08]} 18. Ng3 {[%emt 0:05:46]} Nb6 {[%emt 0:06:01]} 19. e4 {[%emt 0:00:36]} dxe4 {[%emt 0:02:16]} 20. fxe4 {[%emt 0:00:09]} b4 {[%emt 0:01:48]} 21. axb4 {[%emt 0:02:06]} Bxb4 {[%emt 0:00:18]} 22. d5 {[%emt 0:01:47]} Bb5 {[%emt 0:08:37]} 23. Rfe1 {[%emt 0:01:42]} Ng4 {[%emt 0:01:40]} 24. Qd4 {[%emt 0:03:33]} Bxc3 {[%emt 0:02:34]} 25. Qxc3 {[%emt 0:00:05]} Nxf2 {[%emt 0:00:34]} 26. Kxf2 {[%emt 0:01:01]} Nd7 {[%emt 0:01:09]} 27. Kg1 {[%emt 0:05:25]} Ne5 {[%emt 0:00:05]} 28. h3 {[%emt 0:01:08]} Qb6+ {[%emt 0:00:37]} 29. Kh1 {[%emt 0:00:12]} Rac8 {[%emt 0:00:34]} 30. Qd2 {[%emt 0:01:26]} Bd7 {[%emt 0:00:34]} 31. Ba4 {[%emt 0:00:32]} Bxa4 {[%emt 0:00:10]} 32. Rxa4 {[%emt 0:00:01]} Qb3 {[%emt 0:00:10]} 33. Rxa7 {[%emt 0:03:20]} Qxg3 {[%emt 0:00:01]} 34. Rf1 {[%emt 0:00:23]} Nc4 {[%emt 0:00:57]} 35. Qe2 {[%emt 0:02:09]} Nd6 {[%emt 0:00:52]} 36. Qf3 {[%emt 0:00:02]} Qe5 {[%emt 0:00:29]} 0-1

[Event "ROU-chT 1st League 2019"]
[Site "Mamaia"]
[Date "2019.09.29"]
[Round "9.20"]
[White "Doncea, Vladimir"]
[Black "Sivuk, Vitaly"]
[Result "1-0"]
[ECO "A20"]
[WhiteElo "2341"]
[BlackElo "2559"]
[Annotator "ChessBase"]
[PlyCount "75"]
[EventDate "2019.09.21"]
[EventType "team-tourn"]
[EventCountry "ROU"]
[SourceTitle "playchess.com"]
[Source "ChessBase"]
[SourceQuality "1"]
[TimeControl "40/5400+30:1800+30"]

1. c4 {[%emt 0:00:00]} e5 {[%emt 0:00:21]} 2. g3 {[%emt 0:00:00]} Nc6 {[%emt 0:00:24]} 3. Bg2 {[%emt 0:00:00]} Bc5 {[%emt 0:00:26]} 4. Nc3 {[%emt 0:00:25]} a6 {[%emt 0:00:35]} 5. a3 {[%emt 0:03:10]} d6 {[%emt 0:00:28]} 6. b4 {[%emt 0:02:59]} Ba7 {[%emt 0:00:08]} 7. e3 {[%emt 0:04:54]} h5 {[%emt 0:01:03]} 8. h3 {[%emt 0:00:21]} h4 {[%emt 0:00:57]} 9. g4 {[%emt 0:00:40]} f5 {[%emt 0:00:42]} 10. gxf5 {[%emt 0:00:43]} Bxf5 {[%emt 0:00:14]} 11. Be4 {[%emt 0:02:38]} g6 {[%emt 0:12:21]} 12. Qf3 {[%emt 0:03:11]} Qd7 {[%emt 0:01:54]} 13. b5 {[%emt 0:02:09]} axb5 {[%emt 0:00:13]} 14. cxb5 {[%emt 0:00:45]} Na5 {[%emt 0:01:17]} 15. Bxb7 {[%emt 0:00:49]} Rb8 {[%emt 0:01:00]} 16. Bd5 {[%emt 0:06:21]} Ne7 {[%emt 0:05:16]} 17. e4 {[%emt 0:05:35]} Rf8 {[%emt 0:03:07]} 18. exf5 {[%emt 0:00:11]} Rxf5 {[%emt 0:00:11]} 19. Qd3 {[%emt 0:06:57]} Bxf2+ {[%emt 0:10:00]} 20. Kd1 {[%emt 0:00:11]} Bd4 {[%emt 0:04:25]} 21. Be4 {[%emt 0:10:10]} Rg5 {[%emt 0:00:10]} 22. Nge2 {[%emt 0:00:16]} d5 {[%emt 0:12:54]} 23. Bf3 {[%emt 0:12:40]} Nb3 {[%emt 0:03:21]} 24. Bg4 {[%emt 0:05:17]} Rxg4 {[%emt 0:02:02]} 25. hxg4 {[%emt 0:00:06]} Nxa1 {[%emt 0:00:32]} 26. Nxd4 {[%emt 0:00:27]} exd4 {[%emt 0:07:37]} 27. Qxd4 {[%emt 0:01:10]} Qe6 {[%emt 0:06:09]} 28. Rxh4 {[%emt 0:11:19]} Kd7 {[%emt 0:01:40]} 29. Rh7 {[%emt 0:01:19]} Kc8 {[%emt 0:03:25]} 30. Qb4 {[%emt 0:01:01]} Ng8 {[%emt 0:01:44]} 31. Bb2 {[%emt 0:03:07]} d4 {[%emt 0:00:25]} 32. Bxa1 {[%emt 0:01:20]} dxc3 {[%emt 0:00:12]} 33. Bxc3 {[%emt 0:00:33]} Qd5 {[%emt 0:00:43]} 34. a4 {[%emt 0:01:18]} Rb6 {[%emt 0:00:37]} 35. Qf8+ {[%emt 0:04:33]} Kb7 {[%emt 0:00:05]} 36. Qf7 {[%emt 0:00:10]} Qd8 {[%emt 0:03:02]} 37. Be5 {[%emt 0:05:51]} Nf6 {[%emt 0:04:31]} 38. Bxc7 {[%emt 0:00:50]} 1-0

[Event "ROU-chT 1st League 2019"]
[Site "Mamaia"]
[Date "2019.09.29"]
[Round "9.21"]
[White "Georgescu, Tiberiu-Marian"]
[Black "Ciorgovean, Iustin"]
[Result "1/2-1/2"]
[ECO "A20"]
[WhiteElo "2508"]
[BlackElo "2331"]
[Annotator "ChessBase"]
[PlyCount "41"]
[EventDate "2019.09.21"]
[EventType "team-tourn"]
[EventCountry "ROU"]
[SourceTitle "playchess.com"]
[Source "ChessBase"]
[SourceQuality "1"]
[TimeControl "40/5400+30:1800+30"]

1. c4 {[%emt 0:01:02]} e5 {[%emt 0:00:18]} 2. g3 {[%emt 0:00:55]} Nf6 {[%emt 0:00:06]} 3. Bg2 {[%emt 0:00:04]} d5 {[%emt 0:00:04]} 4. cxd5 {[%emt 0:00:10]} Nxd5 {[%emt 0:00:03]} 5. Nc3 {[%emt 0:00:11]} Nb6 {[%emt 0:00:03]} 6. Nf3 {[%emt 0:02:57]} Nc6 {[%emt 0:00:13]} 7. O-O {[%emt 0:00:14]} Be7 {[%emt 0:00:17]} 8. d3 {[%emt 0:01:04]} O-O {[%emt 0:00:12]} 9. a3 {[%emt 0:00:04]} Be6 {[%emt 0:01:46]} 10. b4 {[%emt 0:00:18]} a5 {[%emt 0:00:08]} 11. b5 {[%emt 0:01:13]} Nd4 {[%emt 0:00:11]} 12. Nd2 {[%emt 0:00:25]} a4 {[%emt 0:04:43]} 13. Bxb7 {[%emt 0:02:58]} Ra5 {[%emt 0:00:07]} 14. Rb1 {[%emt 0:18:11]} Qe8 {[%emt 0:03:34]} 15. Bb2 {[%emt 0:29:17]} f6 {[%emt 0:03:47]} 16. e3 {[%emt 0:10:10]} Nxb5 {[%emt 0:00:43]} 17. Nxb5 {[%emt 0:04:19]} Rxb5 {[%emt 0:01:10]} 18. Qf3 {[%emt 0:00:43]} Qf7 {[%emt 0:10:12]} 19. d4 {[%emt 0:06:42]} exd4 {[%emt 0:04:17]} 20. Bxd4 {[%emt 0:03:16]} Rxb1 {[%emt 0:05:48]} 21. Nxb1 {[%emt 0:05:08]} 1/2-1/2

[Event "ROU-chT 1st League 2019"]
[Site "Mamaia"]
[Date "2019.09.29"]
[Round "9.22"]
[White "Barzanu, Iulian"]
[Black "David, Alexandru-Vasile"]
[Result "1-0"]
[ECO "B56"]
[WhiteElo "2187"]
[BlackElo "2424"]
[Annotator "NA"]
[PlyCount "107"]
[EventDate "2019.09.21"]
[EventType "team-tourn"]
[EventCountry "ROU"]
[SourceTitle "playchess.com"]
[Source "ChessBase"]
[SourceQuality "1"]
[TimeControl "40/5400+30:1800+30"]

1. e4 {[%emt 0:08:53]} c5 {[%emt 0:00:00]} 2. Nf3 {[%emt 0:00:20]} Nc6 {[%emt 0:00:00]} 3. d4 {[%emt 0:00:21]} cxd4 {[%emt 0:00:00]} 4. Nxd4 {[%emt 0:00:05]} Nf6 {[%emt 0:00:02]} 5. Nc3 {[%emt 0:00:08]} d6 {[%emt 0:00:06]} 6. f3 {[%emt 0:01:59]} e5 {[%emt 0:00:12]} 7. Nb3 {[%emt 0:00:27]} Be7 {[%emt 0:00:06]} 8. Be3 {[%emt 0:00:17]} O-O {[%emt 0:00:18]} 9. Qd2 {[%emt 0:00:21]} Be6 {[%emt 0:00:39]} 10. O-O-O {[%emt 0:00:33]} a5 {[%emt 0:00:56]} 11. Bb5 {[%emt 0:03:25]} Qb8 {[%emt 0:07:01]} 12. Kb1 {[%emt 0:17:34]} Rc8 {[%emt 0:05:13]} 13. g4 {[%emt 0:09:01]} b6 {[%emt 0:13:28]} 14. g5 {[%emt 0:17:32]} Nd7 {[%emt 0:02:32]} 15. Nd5 {[%emt 0:00:45]} Bf8 {[%emt 0:00:56]} 16. c4 {[%emt 0:02:42]} a4 {[%emt 0:04:09]} 17. Na1 {[%emt 0:05:28]} Qb7 {[%emt 0:06:17]} 18. Rc1 {[%emt 0:08:20]} Nc5 {[%emt 0:10:05]} 19. Nc2 {[%emt 0:02:10]} Na5 {[%emt 0:01:15]} 20. Na3 {[%emt 0:01:40]} Kh8 {[%emt 0:14:12]} 21. Qe2 {[%emt 0:02:41]} Be7 {[%emt 0:01:11]} 22. h4 {[%emt 0:01:07]} Rf8 {[%emt 0:00:14]} 23. Rcg1 {[%emt 0:05:13]} f5 {[%emt 0:01:44]} 24. gxf6 {[%emt 0:00:37]} Bxf6 {[%emt 0:00:05]} 25. Bg5 {[%emt 0:03:11]} Rab8 {[%emt 0:04:31]} 26. Rg3 {[%emt 0:00:59]} Qf7 {[%emt 0:00:47]} 27. Nc2 {[%emt 0:03:03]} Rg8 {[%emt 0:10:26]} 28. Rhg1 {[%emt 0:01:38]} Ra8 {[%emt 0:01:43]} 29. Nxb6 {[%emt 0:02:08]} Rab8 {[%emt 0:00:47]} 30. Nd5 {[%emt 0:00:09]} Bxd5 {[%emt 0:00:35]} 31. cxd5 {[%emt 0:01:35]} Bxg5 {[%emt 0:00:44]} 32. hxg5 {[%emt 0:00:54]} g6 {[%emt 0:01:18]} 33. Na3 {[%emt 0:00:23]} Rb7 {[%emt 0:00:36]} 34. Qd2 {[%emt 0:00:31]} Qc7 {[%emt 0:00:29]} 35. Rh3 {[%emt 0:00:20]} Rgb8 {[%emt 0:01:00]} 36. Rgh1 {[%emt 0:00:28]} Rxb5 {[%emt 0:00:07]} 37. Nxb5 {[%emt 0:00:46]} Rxb5 {[%emt 0:00:04]} 38. Rxh7+ {[%emt 0:00:41]} Qxh7 {[%emt 0:00:02]} 39. Rxh7+ {[%emt 0:00:08]} Kxh7 {[%emt 0:00:04]} 40. Qh2+ {[%emt 0:00:00]} Kg8 {[%emt 0:00:00]} 41. Qh6 {[%emt 0:01:24]} Nc4 {[%emt 0:02:11]} 42. Qxg6+ {[%emt 0:02:40]} Kf8 {[%emt 0:00:01]} 43. Qf6+ {[%emt 0:03:21]} Ke8 {[%emt 0:00:05]} 44. Kc2 {[%emt 0:04:54]} a3 {[%emt 0:05:20]} 45. b4 {[%emt 0:14:05]} Rxb4 {[%emt 0:03:59]} 46. Kc3 {[%emt 0:01:32]} Ra4 {[%emt 0:03:03]} 47. g6 {[%emt 0:01:03]} Ne3 {[%emt 0:00:21]} 48. Qf7+ {[%emt 0:01:18]} Kd8 {[%emt 0:00:26]} 49. g7 {[%emt 0:00:38]} Rc4+ {[%emt 0:00:15]} 50. Kd2 {[%emt 0:00:12]} Nf1+ {[%emt 0:00:06]} 51. Ke2 {[%emt 0:00:37]} Ng3+ {[%emt 0:01:14]} 52. Kf2 {[%emt 0:00:37]} Ngxe4+ {[%emt 0:03:24]} 53. fxe4 {[%emt 0:00:09]} Nxe4+ {[%emt 0:00:11]} 54. Ke3 {[%emt 0:00:20]} 1-0